fUST/lending_fUST_20260321
["ID","MTS","AMOUNT","RATE_DAILY","PERIOD"]
[408657949,1774059031840,-143.88333384,9.998e-05,2]
[408657950,1774059031855,-416.11666616,9.998e-05,2]
[408657951,1774059031864,-84.70621575,9.999e-05,2]
[408657952,1774059031876,-415.29378425,9.999e-05,2]
[408657953,1774059031885,-173.40603179,9.999e-05,2]
[408657954,1774059031895,-503.23471469,9.999e-05,2]
[408657955,1774059031905,-500.0,9.999e-05,2]
[408657956,1774059031914,-500.0,9.999e-05,2]
[408657957,1774059031924,-500.0,9.999e-05,2]
[408657958,1774059031934,-500.0,9.999e-05,2]
[408657960,1774059031943,-500.0,9.999e-05,2]
[408657962,1774059031953,-500.0,9.999e-05,2]
[408657963,1774059031962,-500.0,9.999e-05,2]
[408657964,1774059031971,-500.0,9.999e-05,2]
[408657965,1774059031981,-500.0,9.999e-05,2]
[408657966,1774059031991,-500.0,9.999e-05,2]
[408657967,1774059032001,-500.0,9.999e-05,2]
[408657968,1774059032011,-500.0,9.999e-05,2]
[408657969,1774059032020,-500.0,9.999e-05,2]
[408657970,1774059032030,-391.70651432,9.999e-05,2]
[408657971,1774059032040,-500.0,9.999e-05,2]
[408657972,1774059032049,-500.0,9.999e-05,2]
[408657973,1774059032059,-500.0,9.999e-05,2]
[408657974,1774059032068,-98.55130771,9.999e-05,2]
[408657978,1774059037947,-359.96308285,9.999e-05,2]
[408657979,1774059037959,-41.48560944,9.999e-05,2]
[408657980,1774059037969,-500.0,9.999e-05,2]
[408657981,1774059037979,-500.0,9.999e-05,2]
[408657982,1774059037988,-53.79722786,9.999e-05,2]
[408657983,1774059038000,-194.62338113,9.999e-05,2]
[408657984,1774059038010,-500.0,9.999e-05,2]
[408657985,1774059038019,-5.28027008,9.999e-05,2]
[408657986,1774059038055,-494.71972992,9.999e-05,2]
[408657987,1774059038065,-500.0,9.999e-05,2]
[408657988,1774059038074,-166.0,0.00010027,2]
[408657989,1774059038084,-22400.23437065,0.00010028,2]
[408657990,1774059038095,-29114.56254965,0.00010028,2]
[408658000,1774059043009,-3000.0,0.0001,2]
[408658001,1774059043020,-6601.31910178,0.00010028,2]
[408658002,1774059043030,-3596.54611312,0.00010028,2]
[408658003,1774059043041,-178.94095819,0.00010054,2]
[408658004,1774059043051,-209.14045351,0.000101,2]
[408658005,1774059043061,-390.64792661,0.00010127,2]
[408658006,1774059043072,-762.50282472,0.00010154,2]
[408658007,1774059043082,-500.0,0.00010173,2]
[408658008,1774059043092,-147.00106283,0.00010173,2]
[408658013,1774059046152,-353.90500482,0.00010173,2]
[408658014,1774059046162,-500.34643192,0.00010173,2]
[408658015,1774059046171,-504.48413221,0.00010173,2]
[408658016,1774059046180,-500.0,0.00010173,2]
[408658017,1774059046190,-500.0,0.00010173,2]
[408658018,1774059046199,-500.18906294,0.00010173,2]
[408658019,1774059046210,-500.79682489,0.00010173,2]
[408658020,1774059046220,-500.55983164,0.00010173,2]
[408658021,1774059046231,-500.67352224,0.00010173,2]
[408658022,1774059046241,-500.0,0.00010173,2]
[408658023,1774059046255,-500.0,0.00010173,2]
[408658024,1774059046265,-408.84980607,0.00010173,2]
[408658025,1774059046274,-160.98247027,0.000102,3]
[408658026,1774059046283,-1509.72254064,0.00010254,2]
[408658027,1774059046292,-311.572,0.00010268,2]
[408658028,1774059046302,-161.37160631,0.000103,3]
[408658029,1774059046311,-1646.27649468,0.00010354,2]
[408658030,1774059046320,-198.80561549,0.00010365,2]
[408658031,1774059046330,-162.55188574,0.00010365,2]
[408658032,1774059046341,-449.87727905,0.00010365,2]
[408658033,1774059046351,-539.01643062,0.00010365,2]
[408658034,1774059046360,-192.39318311,0.00010365,2]
[408658035,1774059046369,-2150.738,0.00010365,2]
[408658036,1774059046378,-537.6845,0.00010365,2]
[408658037,1774059046387,-214.84842906,0.00010365,2]
[408658038,1774059046396,-166.0,0.0001037,2]
[408658039,1774059046405,-690.0,0.0001037,2]
[408658040,1774059046416,-351.0,0.0001037,2]
[408658041,1774059046429,-166.0,0.0001037,2]
[408658042,1774059046438,-690.0,0.0001037,2]
[408658043,1774059046447,-166.0,0.0001037,2]
[408658044,1774059046457,-351.0,0.0001037,2]
[408658045,1774059046466,-166.0,0.0001037,2]
[408658046,1774059046476,-690.0,0.0001037,2]
[408658047,1774059046485,-166.0,0.0001037,2]
[408658048,1774059046494,-351.0,0.0001037,2]
[408658049,1774059046505,-172.0,0.0001037,2]
[408658050,1774059046514,-166.0,0.0001037,2]
[408658051,1774059046523,-690.0,0.0001037,2]
[408658052,1774059046532,-228.61027383,0.0001037,2]
[408658053,1774059046542,-155.0,0.0001037,2]
[408658054,1774059046551,-351.0,0.0001037,2]
[408658055,1774059046560,-166.0,0.0001037,2]
[408658056,1774059046569,-690.0,0.0001037,2]
[408658057,1774059046578,-155.0,0.0001037,2]
[408658058,1774059046588,-351.0,0.0001037,2]
[408658059,1774059046597,-166.0,0.0001037,2]
[408658060,1774059046607,-690.0,0.0001037,2]
[408658061,1774059046616,-158.855467,0.0001037,2]
[408658062,1774059046626,-351.0,0.0001037,2]
[408658063,1774059046635,-59.38977988,0.0001037,2]
[408658064,1774059046647,-106.61022012,0.0001037,2]
[408658065,1774059046656,-690.0,0.0001037,2]
[408658066,1774059046665,-351.0,0.0001037,2]
[408658067,1774059046675,-166.0,0.0001037,2]
[408658068,1774059046684,-690.0,0.0001037,2]
[408658069,1774059046693,-166.0,0.0001037,2]
[408658070,1774059046703,-690.0,0.0001037,2]
[408658071,1774059046712,-351.0,0.0001037,2]
[408658072,1774059046721,-166.0,0.0001037,2]
[408658073,1774059046730,-160.39282099,0.0001037,2]
[408658074,1774059046742,-529.60717901,0.0001037,2]
[408658075,1774059046751,-351.0,0.0001037,2]
[408658076,1774059046760,-172.0,0.0001037,2]
[408658077,1774059046769,-690.0,0.0001037,2]
[408658078,1774059046778,-351.0,0.0001037,2]
[408658079,1774059046788,-690.0,0.0001037,2]
[408658080,1774059046797,-351.0,0.0001037,2]
[408658081,1774059046806,-351.0,0.0001037,2]
[408658082,1774059046816,-690.0,0.0001037,2]
[408658083,1774059046825,-351.0,0.0001037,2]
[408658084,1774059046834,-690.0,0.0001037,2]
[408658085,1774059046844,-690.0,0.0001037,2]
[408658086,1774059046853,-351.0,0.0001037,2]
[408658087,1774059046863,-690.0,0.0001037,2]
[408658088,1774059046874,-351.0,0.0001037,2]
[408658089,1774059046884,-690.0,0.0001037,2]
[408658090,1774059046893,-351.0,0.0001037,2]
[408658091,1774059046903,-690.0,0.0001037,2]
[408658092,1774059046912,-351.0,0.0001037,2]
[408658093,1774059046921,-690.0,0.0001037,2]
[408658094,1774059046933,-351.0,0.0001037,2]
[408658095,1774059046943,-690.0,0.0001037,2]
[408658096,1774059046952,-351.0,0.0001037,2]
[408658097,1774059046962,-690.0,0.0001037,2]
[408658098,1774059046971,-351.0,0.0001037,2]
[408658099,1774059046982,-455.03365126,0.0001037,2]
[408658100,1774059046991,-667.23718018,0.0001037,2]
[408658121,1774060231976,-547.0,9.087e-05,2]
[408658122,1774060231985,-237.76262155,9.087e-05,2]
[408658123,1774060232029,-216.14298065,9.087e-05,2]
[408658124,1774060232038,-455.0433251,9.15e-05,2]
[408658125,1774060232047,-196.0536816,9.843e-05,2]
[408658126,1774060232056,-300.0,0.00010024,2]
[408658127,1774060232066,-300.0,0.00010024,2]
[408658140,1774060232309,-300.0,0.00010024,2]
[408658141,1774060232321,-300.0,0.00010024,2]
[408658142,1774060232331,-1200.0,0.00010024,2]
[408658143,1774060232341,-300.0,0.00010024,2]
[408658144,1774060232350,-3027.91249935,0.00010026,2]
[408658145,1774060232360,-7123.3317801,0.00010027,2]
[408658146,1774060232371,-1169.95083676,0.00010027,2]
[408658150,1774060238088,-7551.34887339,0.00010027,2]
[408658151,1774060238097,-16011.62583617,0.0001017,2]
[408658152,1774060238106,-500.0,0.00010269,2]
[408658153,1774060238116,-432.41183492,0.00010269,2]
[408658154,1774060238125,-360.93562322,0.00010269,2]
[408658155,1774060238134,-10729.70257625,0.0001027,2]
[408658156,1774060238145,-4783.18568281,0.0001027,2]
[408658157,1774060238156,-22933.78505513,0.0001027,2]
[408658158,1774060238167,-18613.46250149,0.0001027,2]
[408658159,1774060238181,-409.18490883,0.0001027,2]
[408658178,1774060240513,-495.840245,0.0001027,2]
[408658179,1774060240524,-3428.4456557,0.0001027,2]
[408658180,1774060240566,-341.44406342,0.0001027,2]
[408658186,1774060243253,-760.69687761,0.0001027,2]
[408658201,1774060246159,-1209.79618404,0.0001027,2]
[408658202,1774060246374,-8103.97697068,0.0001027,2]
[408658210,1774061432137,-323.1955821,6.465e-05,2]
[408658211,1774061432147,-512.0,6.465e-05,2]
[408658212,1774061432158,-178.55377452,6.565e-05,2]
[408658213,1774061432168,-88.98963862,6.91e-05,2]
[408658214,1774061432243,-411.01036138,6.91e-05,2]
[408658216,1774061432253,-362.61170508,7.274e-05,2]
[408658218,1774061432265,-137.38829492,7.274e-05,2]
[408658219,1774061432275,-500.0,7.657e-05,2]
[408658221,1774061432284,-500.0,8.06e-05,2]
[408658224,1774061432294,-500.0,8.463e-05,2]
[408658226,1774061432303,-500.0,8.886e-05,2]
[408658227,1774061432313,-163.677218,9.174e-05,2]
[408658229,1774061432322,-162.51045185,9.33e-05,2]
[408658262,1774061438344,-337.48954815,9.33e-05,2]
[408658264,1774061438354,-766.68137985,9.405e-05,2]
[408658266,1774061438366,-269.35740817,9.405e-05,2]
[408658268,1774061438375,-2008.61297152,9.505e-05,2]
[408658269,1774061438385,-1234.76037632,9.605e-05,2]
[408658340,1774061443307,-986.09157775,9.605e-05,2]
[408658341,1774061443318,-2380.51440796,9.705e-05,2]
[408658342,1774061443328,-500.0,9.797e-05,2]
[408658343,1774061443338,-2540.17686198,9.805e-05,2]
[408658344,1774061443348,-2699.839316,9.905e-05,2]
[408658345,1774061443357,-300.0,9.952e-05,2]
[408658346,1774061443367,-300.0,9.952e-05,2]
[408658347,1774061443377,-300.0,9.952e-05,2]
[408658348,1774061443387,-1200.0,9.952e-05,2]
[408658349,1774061443397,-500.0,9.953e-05,2]
[408658350,1774061443407,-500.38539633,9.953e-05,2]
[408658351,1774061443417,-500.54244637,9.953e-05,2]
[408658352,1774061443427,-212.31574221,9.953e-05,2]
[408658353,1774061443437,-528.69308149,9.953e-05,2]
[408658354,1774061443447,-500.0,9.953e-05,2]
[408658355,1774061443456,-502.82559758,9.953e-05,2]
[408658356,1774061443466,-500.0,9.953e-05,2]
[408658357,1774061443476,-500.0,9.953e-05,2]
[408658358,1774061443486,-307.56244354,9.953e-05,2]
[408658359,1774061443496,-500.94400416,9.953e-05,2]
[408658360,1774061443505,-300.0,9.969e-05,2]
[408658361,1774061443515,-273.45354863,9.969e-05,2]
[408658362,1774061443525,-3831.0343579,9.97e-05,2]
[408658363,1774061443537,-1107.9990059,9.97e-05,2]
[408658372,1774061446286,-10694.48732132,9.97e-05,2]
[408658373,1774061446297,-21900.28028668,9.97e-05,2]
[408658375,1774062088555,-300.0,9.769e-05,2]
[408658376,1774062088615,-7020.61026782,9.77e-05,2]
[408658377,1774062118191,-108.58251596,9.769e-05,2]
[408658378,1774062118510,-82.83496808,9.769e-05,2]
[408658401,1774062632330,-300.0,9.669e-05,2]
[408658402,1774062632339,-300.0,9.669e-05,2]
[408658404,1774062632349,-300.0,9.669e-05,2]
[408658406,1774062632358,-300.0,9.669e-05,2]
[408658407,1774062632367,-766.11974943,9.669e-05,2]
[408658408,1774062632386,-269.08724583,9.669e-05,2]
[408658409,1774062632398,-164.79300474,9.669e-05,2]
[408658410,1774062632408,-555.0,9.669e-05,2]
[408658411,1774062632417,-443.55450427,9.67e-05,2]
[408658415,1774062638571,-47201.94444169,9.67e-05,2]
[408658416,1774062640981,-623.8679506,9.67e-05,2]
[408658437,1774062643596,-13798.75493383,9.67e-05,2]
[408658438,1774062643651,-400.0,9.67e-05,2]
[408658439,1774062643661,-21388.0,9.67e-05,2]
[408658440,1774062643675,-2620.42428364,9.67e-05,2]
[408658446,1774062646714,-4135.36983239,9.67e-05,2]
[408658447,1774062646724,-501.00472215,9.753e-05,2]
[408658448,1774062646733,-3780.0,9.765e-05,2]
[408658449,1774062646743,-454.9041994,9.765e-05,2]
[408658450,1774062646753,-49763.57925879,9.77e-05,2]
[408658451,1774062646770,-10639.05055673,9.77e-05,2]
[408658491,1774063837671,-377.2290701,9.14e-05,2]
[408658492,1774063837684,-548.0,9.14e-05,2]
[408658493,1774063837693,-500.26287978,9.553e-05,2]
[408658494,1774063837704,-500.0,9.853e-05,2]
[408658495,1774063837714,-266.60165707,9.853e-05,2]
[408658496,1774063837723,-300.0,9.998e-05,2]
[408658497,1774063837732,-300.0,9.998e-05,2]
[408658498,1774063837741,-300.0,9.998e-05,2]
[408658499,1774063837750,-1200.0,9.998e-05,2]
[408658500,1774063837760,-2150.738,9.999e-05,2]
[408658501,1774063837770,-537.6845,9.999e-05,2]
[408658502,1774063837781,-2859.50177002,0.00010005,2]
[408658503,1774063837791,-557.5788265,0.00010054,2]
[408658504,1774063837800,-576.635275,0.00010096,2]
[408658505,1774063837809,-2981.18715503,0.00010105,2]
[408658506,1774063837819,-578.20924308,0.00010109,2]
[408658507,1774063837828,-249.257,0.00010127,2]
[408658508,1774063837838,-599.60298507,0.00010164,2]
[408658509,1774063837847,-8646.02508341,0.000102,2]
[408658510,1774063837864,-23606.56098796,0.000102,2]
[408658511,1774063837875,-5170.79860955,0.000102,2]
[408658512,1774063837886,-10661.86515255,0.000102,2]
[408658584,1774063840529,-4347.6310309,0.000102,2]
[408658588,1774063840545,-1961.43527185,0.000102,2]
[408658592,1774063840557,-1186.96651919,0.000102,2]
[408658665,1774063845985,-33919.09773436,0.000102,2]
[408658666,1774063845995,-697.93262636,0.00010205,2]
[408658702,1774065031805,-339.0,9.185e-05,2]
[408658703,1774065031815,-339.0,9.185e-05,2]
[408658704,1774065031824,-339.0,9.185e-05,2]
[408658705,1774065031833,-300.0,9.373e-05,2]
[408658706,1774065031843,-300.0,9.373e-05,2]
[408658707,1774065031852,-300.0,9.373e-05,2]
[408658708,1774065031862,-551.0,9.373e-05,2]
[408658709,1774065031871,-1200.0,9.374e-05,2]
[408658710,1774065031880,-6374.45400534,9.375e-05,2]
[408658711,1774065031892,-545.83712939,9.375e-05,2]
[408658739,1774065037876,-2601.54438766,9.375e-05,2]
[408658740,1774065037927,-2712.137328,9.375e-05,2]
[408659135,1774065046083,-484.14,9.375e-05,2]
[408659136,1774065046138,-2226.60387276,9.375e-05,2]
[408659137,1774065681405,-478.76269332,9.184e-05,2]
[408659138,1774065681418,-70.23730668,9.184e-05,2]
[408659139,1774065681427,-478.76269332,9.185e-05,2]
[408659159,1774066231872,-537.0,8.31e-05,2]
[408659162,1774066231882,-1502.7025343,8.31e-05,2]
[408659163,1774066231892,-206.136557,8.38e-05,2]
[408659165,1774066231902,-800.0,8.543e-05,3]
[408659167,1774066231911,-454.7529577,9.021e-05,2]
[408659169,1774066231920,-281.00721637,9.084e-05,2]
[408659171,1774066231930,-21.23730668,9.185e-05,2]
[408659173,1774066231939,-9333.8283627,9.275e-05,2]
[408659176,1774066231950,-931.85262945,9.275e-05,2]
[408659178,1774066231962,-757.30114626,9.275e-05,2]
[408659180,1774066231973,-840.97591378,9.275e-05,2]
[408659182,1774066231985,-631.87264066,9.275e-05,2]
[408659209,1774066238075,-5526.81915222,9.275e-05,2]
[408659210,1774066238087,-12465.9529922,9.275e-05,2]
[408659212,1774066238097,-300.0,9.373e-05,2]
[408659214,1774066238106,-300.0,9.374e-05,2]
[408659216,1774066238116,-300.0,9.374e-05,2]
[408659218,1774066238125,-1200.0,9.374e-05,2]
[408659220,1774066238135,-6965.70021834,9.375e-05,2]
[408659221,1774066238150,-990.72703622,9.375e-05,2]
[408659290,1774066240592,-2279.5,9.375e-05,2]
[408659297,1774066240645,-3161.85952668,9.375e-05,2]
[408659422,1774066246222,-9255.28352557,9.375e-05,2]
[408659423,1774066246276,-4523.78118338,9.375e-05,2]
[408659440,1774067432076,-1200.0,9.373e-05,2]
[408659441,1774067432087,-551.0,9.373e-05,2]
[408659442,1774067432101,-300.0,9.374e-05,2]
[408659443,1774067432111,-300.0,9.374e-05,2]
[408659444,1774067432120,-600.47895316,9.375e-05,2]
[408659445,1774067432131,-3208.81236043,9.375e-05,2]
[408659446,1774067432143,-946.25436417,9.375e-05,2]
[408659447,1774067432154,-594.54488708,9.375e-05,2]
[408659448,1774067432166,-4361.47727266,9.375e-05,2]
[408659449,1774067432177,-641.37343117,9.375e-05,2]
[408659458,1774067438148,-1414.68,9.375e-05,2]
[408659460,1774067438206,-3936.91904569,9.375e-05,2]
[408659461,1774067438217,-716.4387328,9.375e-05,2]
[408659462,1774067438228,-339.0,9.375e-05,2]
[408659463,1774067438238,-339.0,9.375e-05,2]
[408659464,1774067438250,-339.0,9.375e-05,2]
[408659465,1774067438261,-339.0,9.375e-05,2]
[408659466,1774067438271,-339.0,9.375e-05,2]
[408659467,1774067438280,-339.0,9.375e-05,2]
[408659468,1774067438291,-339.0,9.375e-05,2]
[408659469,1774067438300,-347.4123285,9.375e-05,2]
[408659470,1774067438310,-165.165435,9.409e-05,2]
[408659471,1774067438321,-161.97103398,9.499e-05,2]
[408659472,1774067438333,-300.0,9.561e-05,2]
[408659473,1774067438342,-300.0,9.561e-05,2]
[408659474,1774067438351,-300.0,9.561e-05,2]
[408659475,1774067438361,-300.0,9.561e-05,2]
[408659476,1774067438374,-300.0,9.561e-05,2]
[408659477,1774067438384,-300.0,9.561e-05,2]
[408659478,1774067438394,-300.0,9.561e-05,2]
[408659479,1774067438406,-300.0,9.561e-05,2]
[408659480,1774067438415,-300.0,9.561e-05,2]
[408659481,1774067438426,-300.0,9.561e-05,2]
[408659482,1774067438437,-300.0,9.561e-05,2]
[408659483,1774067438447,-300.0,9.561e-05,2]
[408659484,1774067438456,-300.0,9.561e-05,2]
[408659485,1774067438465,-300.0,9.561e-05,2]
[408659486,1774067438475,-300.0,9.561e-05,2]
[408659487,1774067438484,-600.0,9.561e-05,2]
[408659488,1774067438494,-250.11461076,9.715e-05,2]
[408659489,1774067438503,-2150.738,9.777e-05,2]
[408659490,1774067438512,-537.6845,9.777e-05,2]
[408659491,1774067438521,-557.5788265,9.832e-05,2]
[408659492,1774067438533,-709.810581,9.874e-05,2]
[408659493,1774067438543,-578.20924308,9.887e-05,2]
[408659494,1774067438552,-599.60298507,9.942e-05,2]
[408659495,1774067438561,-303.76165627,9.997e-05,2]
[408659496,1774067438573,-199.406,0.000101,2]
[408659497,1774067438583,-40418.3461171,0.00010138,2]
[408659498,1774067438600,-1420.0,0.00010138,2]
[408659499,1774067438615,-11314.4342399,0.00010138,2]
[408659539,1774067440694,-3648.98932396,0.00010138,2]
[408659554,1774067443275,-6544.19101451,0.00010138,2]
[408659555,1774067443290,-4895.9349,0.00010138,2]
[408659564,1774067446823,-540.92371165,0.00010138,2]
[408659565,1774067446835,-24808.97632093,0.00010138,2]
[408659566,1774067446847,-7555.21288691,0.00010138,2]
[408659590,1774068632204,-690.0,9.124e-05,2]
[408659592,1774068632215,-19.89068,9.124e-05,2]
[408659597,1774068632263,-670.10932,9.124e-05,2]
[408659599,1774068632276,-220.89068,9.124e-05,2]
[408659602,1774068632293,-469.10932,9.124e-05,2]
[408659604,1774068632306,-30.89068,9.124e-05,2]
[408659630,1774068638863,-659.10932,9.124e-05,2]
[408659631,1774068638875,-690.0,9.124e-05,2]
[408659632,1774068638891,-690.0,9.124e-05,2]
[408659633,1774068638903,-690.0,9.124e-05,2]
[408659634,1774068638915,-690.0,9.124e-05,2]
[408659635,1774068638928,-164.62945053,9.124e-05,2]
[408659636,1774068638943,-525.37054947,9.124e-05,2]
[408659637,1774068638957,-690.0,9.124e-05,2]
[408659638,1774068638969,-690.0,9.124e-05,2]
[408659639,1774068638980,-690.0,9.124e-05,2]
[408659640,1774068638992,-690.0,9.124e-05,2]
[408659641,1774068639003,-712.76281982,9.124e-05,2]
[408659642,1774068639015,-556.0,9.714e-05,2]
[408659643,1774068639026,-278.35882064,9.714e-05,2]
[408659644,1774068639037,-355.15605165,9.913e-05,2]
[408659645,1774068639050,-500.0,9.913e-05,2]
[408659646,1774068639062,-247.81760647,9.913e-05,2]
[408659647,1774068639074,-1200.0,9.936e-05,2]
[408659648,1774068639086,-258.0,9.937e-05,2]
[408659649,1774068639097,-300.0,9.937e-05,2]
[408659650,1774068639108,-300.0,9.937e-05,2]
[408659651,1774068639121,-4688.42776261,9.938e-05,2]
[408659652,1774068639186,-1714.65998636,9.938e-05,2]
[408659709,1774068643454,-478.55877297,9.938e-05,2]
[408659725,1774068646455,-1929.10950984,9.938e-05,2]
[408659726,1774068646672,-13498.85854768,9.938e-05,2]
[408659727,1774068646684,-84924.00459101,9.938e-05,2]
[408659768,1774069838675,-5000.0,8.49e-05,2]
[408659770,1774069838685,-540.0,8.576e-05,2]
[408659772,1774069838696,-1709.89448,8.75e-05,2]
[408659774,1774069838706,-1200.0,9.537e-05,2]
[408659776,1774069838715,-300.0,9.537e-05,2]
[408659778,1774069838726,-361.10512341,9.538e-05,2]
[408659809,1774069843615,-8170.01993263,9.538e-05,2]
[408659810,1774069843779,-438.87021569,9.538e-05,2]
[408659871,1774069846806,-6200.0,9.538e-05,2]
[408659872,1774069846819,-65027.97450267,9.538e-05,2]
[408659873,1774069846863,-280.70606371,9.538e-05,2]
[408659874,1774071002267,300.0,2e-05,2]
[408659875,1774071002292,300.0,2e-05,2]
[408659876,1774071002316,300.0,2e-05,2]
[408659877,1774071002341,300.0,2e-05,2]
[408659878,1774071002364,185.91,2e-05,2]
[408659879,1774071002557,114.09,2e-05,2]
[408659880,1774071002585,300.0,2e-05,2]
[408659881,1774071002610,300.0,2e-05,2]
[408659882,1774071002900,300.0,2e-05,2]
[408659883,1774071002927,300.0,2e-05,2]
[408659884,1774071002953,71.82,2e-05,2]
[408659885,1774071003011,228.18,2e-05,2]
[408659886,1774071003036,1157.73,2e-05,2]
[408659887,1774071003163,1385.91,2e-05,2]
[408659888,1774071003457,1385.91,2e-05,2]
[408659889,1774071003741,1385.91,2e-05,2]
[408659890,1774071004165,1385.91,2e-05,2]
[408659891,1774071004440,1385.91,2e-05,2]
[408659892,1774071004735,1385.91,2e-05,2]
[408659893,1774071005029,1385.91,2e-05,2]
[408659894,1774071005303,1385.91,2e-05,2]
[408659895,1774071005599,1385.91,2e-05,2]
[408659896,1774071005894,1385.91,2e-05,2]
[408659897,1774071007507,5000.0,2.001e-05,2]
[408659898,1774071024763,1385.73,2e-05,2]
[408659899,1774071025216,-1385.91,2.1e-05,2]
[408659900,1774071025259,-685.44955146,2.1e-05,2]
[408659934,1774071037792,-605.52825177,2.079e-05,2]
[408659935,1774071037802,-700.46044854,2.1e-05,2]
[408659936,1774071037812,-1385.91,2.1e-05,2]
[408659937,1774071037821,-1385.91,2.1e-05,2]
[408659938,1774071037830,-875.18129969,2.1e-05,2]
[408660095,1774071042930,-510.72870031,2.1e-05,2]
[408660096,1774071042941,-1385.91,2.1e-05,2]
[408660097,1774071042952,-1385.91,2.1e-05,2]
[408660098,1774071042962,-1385.91,2.1e-05,2]
[408660099,1774071042972,-1385.91,2.1e-05,2]
[408660100,1774071042982,-1385.91,2.1e-05,2]
[408660101,1774071042992,-1385.91,2.1e-05,2]
[408660102,1774071043002,-1385.91,2.1e-05,2]
[408660103,1774071043011,-1385.91,2.1e-05,2]
[408660104,1774071043021,-1385.91,2.1e-05,2]
[408660105,1774071043030,-1385.91,2.1e-05,2]
[408660106,1774071043040,-1385.91,2.1e-05,2]
[408660107,1774071043050,-1385.91,2.1e-05,2]
[408660108,1774071043059,-1385.91,2.1e-05,2]
[408660109,1774071043069,-1385.91,2.1e-05,2]
[408660110,1774071043080,-1385.91,2.1e-05,2]
[408660111,1774071043089,-1385.91,2.1e-05,2]
[408660113,1774071043099,-1283.72615054,2.1e-05,2]
[408660115,1774071043110,-102.18384946,2.1e-05,2]
[408660116,1774071043119,-1385.91,2.1e-05,2]
[408660117,1774071043128,-1385.91,2.1e-05,2]
[408660118,1774071043138,-300.0,2.141e-05,2]
[408660119,1774071043147,-300.0,2.141e-05,2]
[408660120,1774071043156,-300.0,2.141e-05,2]
[408660121,1774071043166,-300.0,2.141e-05,2]
[408660122,1774071043176,-156.58850882,2.141e-05,2]
[408660125,1774071045940,-143.41149118,2.141e-05,2]
[408660126,1774071045950,-300.0,2.141e-05,2]
[408660127,1774071045960,-300.0,2.141e-05,2]
[408660128,1774071045969,-57.50615054,2.141e-05,2]
[408660129,1774071046111,-242.49384946,2.141e-05,2]
[408660130,1774071046120,-300.0,2.141e-05,2]
[408660131,1774071046130,-300.0,2.141e-05,2]
[408660132,1774071046139,-300.0,2.141e-05,2]
[408660133,1774071046149,-241.54163828,2.141e-05,2]
[408660134,1774071054426,-58.45836172,2.141e-05,2]
[408660135,1774071054455,-300.0,2.141e-05,2]
[408660136,1774071054488,-300.0,2.141e-05,2]
[408660137,1774071054549,-68.99327656,2.141e-05,2]
[408660138,1774071083676,-231.00672344,2.141e-05,2]
[408660139,1774071083712,-196.44491484,2.141e-05,2]
[408660140,1774071112928,-231.00672344,2.141e-05,2]
[408660141,1774071603376,155.27,2e-05,2]
[408660142,1774071603422,155.27,2e-05,2]
[408660143,1774071603938,155.27,2e-05,2]
[408660144,1774071604211,155.27,2e-05,2]
[408660145,1774071604637,155.27,2e-05,2]
[408660146,1774071604934,155.27,2e-05,2]
[408660147,1774071605661,155.27,2e-05,2]
[408660148,1774072022618,302.73848456,1.933e-05,2]
[408660149,1774072101017,1029.29230383,2.001e-05,2]
[408660163,1774072231746,-607.8433,2.054e-05,2]
[408660165,1774072231756,-14262.80309179,2.054e-05,2]
[408660241,1774072237833,-1134.089456,2.054e-05,2]
[408660243,1774072237844,-2969.89313472,2.054e-05,2]
[408660248,1774072237889,-7660.43217512,2.054e-05,2]
[408660250,1774072237901,-4954.32,2.054e-05,2]
[408660272,1774072240280,-484.0,2.054e-05,2]
[408660274,1774072240292,-1779.19478157,2.054e-05,2]
[408660283,1774072243040,-443.0,2.054e-05,2]
[408660291,1774072246109,-2484.4064608,2.054e-05,2]
[408660292,1774072246119,-300.0,2.074e-05,2]
[408660293,1774072246128,-300.0,2.074e-05,2]
[408660294,1774072246138,-158.62296281,2.074e-05,2]
[408660295,1774072246150,-141.37703719,2.074e-05,2]
[408660296,1774072246159,-300.0,2.074e-05,2]